[Event "*** Titled Tuesday 3|2 Blitz"]
[Site "Chess.com"]
[Date "2015.06.02"]
[Round "6"]
[White "1random"]
[Black "MFBerna"]
[Result "1-0"]
[WhiteElo "2054"]
[BlackElo "1866"]
[TimeControl "180+2"]
[EndTime "12:12:44 PDT"]
[Termination "1random won on time"]

1. e4 {[%clk 0:03:01.9]} 1... e5 {[%clk 0:02:57.3]} 2. Nf3 {[%clk 0:03:01]} 2...
Nc6 {[%clk 0:02:58.6]} 3. Bb5 {[%clk 0:03:01.2]} 3... a6 {[%clk 0:02:59]} 4. Ba4
{[%clk 0:02:56.8]} 4... Nf6 {[%clk 0:03:00.1]} 5. O-O {[%clk 0:02:57.9]} 5...
Be7 {[%clk 0:03:01]} 6. Re1 {[%clk 0:02:59.3]} 6... b5 {[%clk 0:03:02.4]} 7. Bb3
{[%clk 0:03:00.4]} 7... O-O {[%clk 0:03:03.9]} 8. d4 {[%clk 0:03:01.5]} 8... d6
{[%clk 0:03:02.4]} 9. c3 {[%clk 0:03:02.1]} 9... Bg4 {[%clk 0:03:01.8]} 10. Be3
{[%clk 0:03:03.1]} 10... Na5 {[%clk 0:02:59]} 11. dxe5 {[%clk 0:03:01.5]} 11...
Bxf3 {[%clk 0:02:40.6]} 12. Qxf3 {[%clk 0:03:00.9]} 12... dxe5 {[%clk
0:02:38.8]} 13. Nd2 {[%clk 0:03:01.1]} 13... Nxb3 {[%clk 0:02:38.7]} 14. axb3
{[%clk 0:02:54.9]} 14... Qc8 {[%clk 0:02:37.4]} 15. b4 {[%clk 0:02:53.9]} 15...
Qe6 {[%clk 0:02:34.8]} 16. Red1 {[%clk 0:02:53.1]} 16... Rfd8 {[%clk 0:02:32.3]}
17. Qe2 {[%clk 0:02:47.1]} 17... Nd7 {[%clk 0:02:07]} 18. h3 {[%clk 0:02:26.2]}
18... c5 {[%clk 0:02:00.5]} 19. bxc5 {[%clk 0:02:20.6]} 19... Nxc5 {[%clk
0:01:47.4]} 20. c4 {[%clk 0:02:00]} 20... bxc4 {[%clk 0:01:14.4]} 21. Nxc4
{[%clk 0:01:59.9]} 21... Nxe4 {[%clk 0:01:00.6]} 22. Rxd8+ {[%clk 0:01:38.2]}
22... Rxd8 {[%clk 0:00:58.7]} 23. Bb6 {[%clk 0:01:24.1]} 23... Rc8 {[%clk
0:00:49.3]} 24. b3 {[%clk 0:01:05.3]} 24... Nc3 {[%clk 0:00:20.9]} 25. Qxe5
{[%clk 0:00:59.5]} 25... Qxe5 {[%clk 0:00:20.9]} 26. Nxe5 {[%clk 0:01:01.4]}
26... Bf6 {[%clk 0:00:17.2]} 27. Re1 {[%clk 0:00:55.4]} 27... Re8 {[%clk
0:00:13.5]} 28. Nf3 {[%clk 0:00:45.4]} 28... Rxe1+ {[%clk 0:00:15.4]} 29. Nxe1
{[%clk 0:00:47]} 29... Ne2+ {[%clk 0:00:17.1]} 30. Kf1 {[%clk 0:00:46.5]} 30...
Nc1 {[%clk 0:00:18.5]} 31. b4 {[%clk 0:00:42.5]} 31... Bc3 {[%clk 0:00:19.5]}
32. Bc5 {[%clk 0:00:40.8]} 32... a5 {[%clk 0:00:17.1]} 33. b5 {[%clk 0:00:34.8]}
33... Bxe1 {[%clk 0:00:12]} 34. b6 {[%clk 0:00:32.4]} 34... Bc3 {[%clk
0:00:11.9]} 35. f4 {[%clk 0:00:10]} 35... g6 {[%clk 0:00:03.9]} 36. b7 {[%clk
0:00:10.9]} 1-0

[Event "*** Titled Tuesday 3|2 Blitz"]
[Site "Chess.com"]
[Date "2015.06.02"]
[Round "6"]
[White "MrHenriksson"]
[Black "AnastasiaProtopopova"]
[Result "0-1"]
[WhiteElo "2043"]
[BlackElo "1892"]
[TimeControl "180+2"]
[EndTime "12:12:49 PDT"]
[Termination "AnastasiaProtopopova won by resignation"]

1. d4 {[%clk 0:03:01.9]} 1... Nf6 {[%clk 0:02:58.7]} 2. Nf3 {[%clk 0:03:02.4]}
2... e6 {[%clk 0:02:57.7]} 3. g3 {[%clk 0:03:03.3]} 3... d5 {[%clk 0:02:57.5]}
4. Bg2 {[%clk 0:03:04.8]} 4... b5 {[%clk 0:02:55.4]} 5. O-O {[%clk 0:03:06.1]}
5... Bb7 {[%clk 0:02:56.7]} 6. Ne5 {[%clk 0:03:04.1]} 6... Bd6 {[%clk
0:02:50.3]} 7. b3 {[%clk 0:03:03.2]} 7... O-O {[%clk 0:02:50.2]} 8. c4 {[%clk
0:03:03.3]} 8... bxc4 {[%clk 0:02:48]} 9. bxc4 {[%clk 0:03:04.3]} 9... c5 {[%clk
0:02:45]} 10. Be3 {[%clk 0:02:47.5]} 10... cxd4 {[%clk 0:02:26.3]} 11. Bxd4
{[%clk 0:02:45.8]} 11... Qc7 {[%clk 0:02:07.3]} 12. f4 {[%clk 0:02:03.5]} 12...
dxc4 {[%clk 0:01:55.8]} 13. Bxb7 {[%clk 0:01:59.2]} 13... Qxb7 {[%clk
0:01:56.3]} 14. Nxc4 {[%clk 0:02:00]} 14... Be7 {[%clk 0:01:54.9]} 15. Qb3
{[%clk 0:01:32.6]} 15... Qe4 {[%clk 0:01:40.7]} 16. e3 {[%clk 0:01:33.1]} 16...
Nc6 {[%clk 0:01:32.3]} 17. Nbd2 {[%clk 0:01:34.1]} 17... Qd5 {[%clk 0:01:27]}
18. Ne5 {[%clk 0:01:19.8]} 18... Nxd4 {[%clk 0:01:11.7]} 19. Qxd5 {[%clk
0:01:20.1]} 19... Nxd5 {[%clk 0:01:06.2]} 20. exd4 {[%clk 0:01:20.3]} 20... Bb4
{[%clk 0:01:07.4]} 21. Ne4 {[%clk 0:01:12.6]} 21... Rac8 {[%clk 0:01:02.4]} 22.
Rfc1 {[%clk 0:01:12.6]} 22... Ba3 {[%clk 0:01:01.5]} 23. Rc6 {[%clk 0:00:49]}
23... Bb2 {[%clk 0:00:56.7]} 24. Rd1 {[%clk 0:00:34.5]} 24... Rfd8 {[%clk
0:00:50.8]} 25. Rxc8 {[%clk 0:00:27.9]} 25... Rxc8 {[%clk 0:00:51.3]} 26. Rd2
{[%clk 0:00:26.9]} 26... Ba3 {[%clk 0:00:47.3]} 27. Kf2 {[%clk 0:00:21.1]} 27...
h6 {[%clk 0:00:44.2]} 28. Nd3 {[%clk 0:00:20.1]} 28... Rc4 {[%clk 0:00:32.2]}
29. Ndc5 {[%clk 0:00:19.8]} 29... f5 {[%clk 0:00:22.8]} 30. Nd6 {[%clk
0:00:14.9]} 30... Rxd4 {[%clk 0:00:18.6]} 31. Rxd4 {[%clk 0:00:10]} 31... Bxc5
{[%clk 0:00:20]} 32. Nb5 {[%clk 0:00:09.8]} 32... a6 {[%clk 0:00:18.6]} 33. Ke2
{[%clk 0:00:10.3]} 33... axb5 {[%clk 0:00:17]} 34. Rd2 {[%clk 0:00:09.4]} 34...
b4 {[%clk 0:00:16.9]} 35. Rc2 {[%clk 0:00:09.4]} 35... Be7 {[%clk 0:00:13.5]}
36. Kd3 {[%clk 0:00:08.4]} 36... Kf7 {[%clk 0:00:13.7]} 37. Kc4 {[%clk
0:00:09.4]} 37... Ne3+ {[%clk 0:00:13.7]} 0-1

[Event "*** Titled Tuesday 3|2 Blitz"]
[Site "Chess.com"]
[Date "2015.06.02"]
[Round "6"]
[White "jlandaw"]
[Black "Ar4uha"]
[Result "1-0"]
[WhiteElo "2333"]
[BlackElo "2436"]
[TimeControl "180+2"]
[EndTime "12:12:52 PDT"]
[Termination "jlandaw won by resignation"]

1. e4 {[%clk 0:03:01.9]} 1... c5 {[%clk 0:03:01.1]} 2. Nc3 {[%clk 0:02:51.7]}
2... d6 {[%clk 0:03:01.9]} 3. g3 {[%clk 0:02:53]} 3... g6 {[%clk 0:03:03]} 4.
Bg2 {[%clk 0:02:54.2]} 4... Bg7 {[%clk 0:03:04.3]} 5. d3 {[%clk 0:02:55.8]} 5...
Nc6 {[%clk 0:03:05.8]} 6. f4 {[%clk 0:02:56.9]} 6... e6 {[%clk 0:03:07.1]} 7.
Nf3 {[%clk 0:02:58.1]} 7... Nge7 {[%clk 0:03:08.6]} 8. O-O {[%clk 0:02:59.6]}
8... O-O {[%clk 0:03:10]} 9. Be3 {[%clk 0:03:00.5]} 9... Nd4 {[%clk 0:03:09.8]}
10. e5 {[%clk 0:03:01.4]} 10... Nef5 {[%clk 0:02:58]} 11. Bf2 {[%clk 0:03:01.8]}
11... Nxf3+ {[%clk 0:02:52.3]} 12. Qxf3 {[%clk 0:03:03.7]} 12... Nd4 {[%clk
0:02:51.9]} 13. Qd1 {[%clk 0:03:04.3]} 13... dxe5 {[%clk 0:02:50.1]} 14. fxe5
{[%clk 0:03:06.2]} 14... Bxe5 {[%clk 0:02:45.2]} 15. Ne4 {[%clk 0:03:03.2]}
15... Nf5 {[%clk 0:02:39.8]} 16. c3 {[%clk 0:02:52.3]} 16... Bd7 {[%clk
0:02:22.4]} 17. Bxc5 {[%clk 0:02:41.6]} 17... Re8 {[%clk 0:02:21.7]} 18. Qe2
{[%clk 0:02:34.8]} 18... Bc6 {[%clk 0:02:18.3]} 19. Bf2 {[%clk 0:02:28.4]} 19...
Bg7 {[%clk 0:02:15.1]} 20. d4 {[%clk 0:02:23.1]} 20... Qa5 {[%clk 0:02:14]} 21.
g4 {[%clk 0:02:16.6]} 21... Ne7 {[%clk 0:01:48.6]} 22. Bh4 {[%clk 0:02:17.2]}
22... Bxe4 {[%clk 0:01:28.3]} 23. Bxe4 {[%clk 0:02:09.3]} 23... Nd5 {[%clk
0:01:27.9]} 24. Qf3 {[%clk 0:01:39]} 24... Rf8 {[%clk 0:01:09.6]} 25. a3 {[%clk
0:01:20.5]} 25... Qb6 {[%clk 0:01:06.6]} 26. Rf2 {[%clk 0:01:13.5]} 26... Qd6
{[%clk 0:00:36]} 27. Raf1 {[%clk 0:01:00.4]} 27... f5 {[%clk 0:00:32.4]} 28.
gxf5 {[%clk 0:00:58]} 28... gxf5 {[%clk 0:00:34.1]} 29. Bxd5 {[%clk 0:00:45.7]}
29... exd5 {[%clk 0:00:35.1]} 30. Bg3 {[%clk 0:00:45.9]} 30... Qg6 {[%clk
0:00:32.7]} 31. Qxd5+ {[%clk 0:00:46.1]} 31... Kh8 {[%clk 0:00:34.2]} 32. Rxf5
{[%clk 0:00:47]} 32... Rfe8 {[%clk 0:00:27.6]} 33. Rg5 {[%clk 0:00:25.3]} 33...
Qh6 {[%clk 0:00:18.2]} 34. Rf7 {[%clk 0:00:20.6]} 34... Rg8 {[%clk 0:00:17.2]}
35. h4 {[%clk 0:00:20.1]} 35... Bf6 {[%clk 0:00:14.2]} 36. Rxf6 {[%clk
0:00:19.1]} 36... Rxg5 {[%clk 0:00:10.6]} 37. Qxg5 {[%clk 0:00:12.7]} 37... Qg7
{[%clk 0:00:08.1]} 38. Be5 {[%clk 0:00:11.6]} 38... h6 {[%clk 0:00:07.6]} 39.
Rxh6+ {[%clk 0:00:12.2]} 1-0

[Event "*** Titled Tuesday 3|2 Blitz"]
[Site "Chess.com"]
[Date "2015.06.02"]
[Round "6"]
[White "VovAn1991"]
[Black "Krutoy123"]
[Result "0-1"]
[WhiteElo "2461"]
[BlackElo "2129"]
[TimeControl "180+2"]
[EndTime "12:13:07 PDT"]
[Termination "Krutoy123 won by checkmate"]

1. g3 {[%clk 0:03:01.9]} 1... d5 {[%clk 0:02:49.7]} 2. Bg2 {[%clk 0:02:56.7]}
2... e6 {[%clk 0:02:49.7]} 3. f4 {[%clk 0:02:56]} 3... Nf6 {[%clk 0:02:50.2]} 4.
Nf3 {[%clk 0:02:57.4]} 4... c5 {[%clk 0:02:51.3]} 5. O-O {[%clk 0:02:58.3]} 5...
Nc6 {[%clk 0:02:53.2]} 6. d3 {[%clk 0:02:59.2]} 6... Be7 {[%clk 0:02:52.8]} 7.
c3 {[%clk 0:02:58.9]} 7... O-O {[%clk 0:02:54.7]} 8. Na3 {[%clk 0:02:55.4]} 8...
Qc7 {[%clk 0:02:54.9]} 9. Qe1 {[%clk 0:02:54]} 9... a6 {[%clk 0:02:51.3]} 10. e4
{[%clk 0:02:54.5]} 10... dxe4 {[%clk 0:02:53.2]} 11. dxe4 {[%clk 0:02:56.4]}
11... b5 {[%clk 0:02:51.2]} 12. e5 {[%clk 0:02:53.9]} 12... Nd5 {[%clk
0:02:51.3]} 13. Nd2 {[%clk 0:02:47.3]} 13... Bb7 {[%clk 0:02:47]} 14. Ne4 {[%clk
0:02:47.6]} 14... c4 {[%clk 0:02:41.3]} 15. Nc2 {[%clk 0:02:47.6]} 15... Rfd8
{[%clk 0:02:41.5]} 16. Ne3 {[%clk 0:02:46]} 16... Nxe3 {[%clk 0:02:28.1]} 17.
Bxe3 {[%clk 0:02:47.9]} 17... Rd3 {[%clk 0:02:29.6]} 18. Nf2 {[%clk 0:02:45.3]}
18... Rd7 {[%clk 0:02:27.6]} 19. Qe2 {[%clk 0:02:46.1]} 19... Rad8 {[%clk
0:02:29]} 20. h4 {[%clk 0:02:43.6]} 20... Nb8 {[%clk 0:02:25.6]} 21. h5 {[%clk
0:02:41]} 21... Bxg2 {[%clk 0:02:26.2]} 22. Kxg2 {[%clk 0:02:42.9]} 22... h6
{[%clk 0:02:26.2]} 23. Kh3 {[%clk 0:02:39.3]} 23... a5 {[%clk 0:02:12.5]} 24. g4
{[%clk 0:02:25.3]} 24... Bc5 {[%clk 0:01:45.8]} 25. Rad1 {[%clk 0:02:20.8]}
25... Na6 {[%clk 0:01:43.9]} 26. Rxd7 {[%clk 0:02:18.6]} 26... Rxd7 {[%clk
0:01:44]} 27. Qf3 {[%clk 0:02:01.8]} 27... Bxe3 {[%clk 0:01:38.8]} 28. Qxe3
{[%clk 0:02:03.1]} 28... Nc5 {[%clk 0:01:38.2]} 29. g5 {[%clk 0:01:53.9]} 29...
hxg5 {[%clk 0:01:38.6]} 30. fxg5 {[%clk 0:01:53.5]} 30... Rd5 {[%clk 0:01:35.8]}
31. g6 {[%clk 0:01:20.3]} 31... fxg6 {[%clk 0:01:28.8]} 32. hxg6 {[%clk
0:01:15.4]} 32... Rxe5 {[%clk 0:01:18.6]} 33. Qd4 {[%clk 0:00:24.2]} 33... Rh5+
{[%clk 0:01:14.1]} 34. Kg4 {[%clk 0:00:20.5]} 34... Rd5 {[%clk 0:01:14.5]} 35.
Qe3 {[%clk 0:00:17.2]} 35... Qe7 {[%clk 0:00:29.5]} 36. Nh3 {[%clk 0:00:15.2]}
36... Nd7 {[%clk 0:00:19.7]} 37. Rf7 {[%clk 0:00:16.1]} 37... Qd6 {[%clk
0:00:16.2]} 38. Ng5 {[%clk 0:00:05.4]} 38... Ne5+ {[%clk 0:00:14.2]} 39. Kh5
{[%clk 0:00:06.2]} 39... Nxf7 {[%clk 0:00:10.8]} 40. gxf7+ {[%clk 0:00:08.1]}
40... Kf8 {[%clk 0:00:12.2]} 41. Qa7 {[%clk 0:00:08.4]} 41... Qh2+ {[%clk
0:00:10.9]} 42. Kg6 {[%clk 0:00:09.5]} 42... Qh6# {[%clk 0:00:11.5]} 0-1

[Event "*** Titled Tuesday 3|2 Blitz"]
[Site "Chess.com"]
[Date "2015.06.02"]
[Round "6"]
[White "Recombinant"]
[Black "GMG"]
[Result "1/2-1/2"]
[WhiteElo "2120"]
[BlackElo "2446"]
[TimeControl "180+2"]
[EndTime "12:13:30 PDT"]
[Termination "Game drawn by repetition"]

1. d4 {[%clk 0:03:01.9]} 1... f5 {[%clk 0:02:59.4]} 2. g3 {[%clk 0:03:00.1]}
2... Nf6 {[%clk 0:03:00.4]} 3. Bg2 {[%clk 0:03:01]} 3... e6 {[%clk 0:03:01.8]}
4. c4 {[%clk 0:03:01.9]} 4... d5 {[%clk 0:03:01.8]} 5. Nc3 {[%clk 0:03:00.7]}
5... c6 {[%clk 0:03:02.4]} 6. Nf3 {[%clk 0:03:00]} 6... Bd6 {[%clk 0:03:03.4]}
7. O-O {[%clk 0:03:00.5]} 7... O-O {[%clk 0:03:04.5]} 8. Ne5 {[%clk 0:02:57.6]}
8... Nbd7 {[%clk 0:03:01.1]} 9. f4 {[%clk 0:02:58]} 9... Ne4 {[%clk 0:02:58.9]}
10. Nxe4 {[%clk 0:02:57.5]} 10... fxe4 {[%clk 0:02:59.1]} 11. e3 {[%clk
0:02:55.6]} 11... Nxe5 {[%clk 0:02:45.3]} 12. fxe5 {[%clk 0:02:55.7]} 12...
Rxf1+ {[%clk 0:02:46.1]} 13. Qxf1 {[%clk 0:02:56.3]} 13... Be7 {[%clk
0:02:45.7]} 14. Bd2 {[%clk 0:02:57]} 14... Bd7 {[%clk 0:02:46.5]} 15. a3 {[%clk
0:02:55]} 15... Be8 {[%clk 0:02:46.2]} 16. Bb4 {[%clk 0:02:54.7]} 16... Bh5
{[%clk 0:02:46.7]} 17. Bxe7 {[%clk 0:02:54.8]} 17... Qxe7 {[%clk 0:02:47.5]} 18.
c5 {[%clk 0:02:39.1]} 18... Rf8 {[%clk 0:02:46.5]} 19. Qe1 {[%clk 0:02:40.2]}
19... g5 {[%clk 0:02:41.3]} 20. Qd2 {[%clk 0:02:39.7]} 20... Bf3 {[%clk
0:02:41.9]} 21. Rf1 {[%clk 0:02:39.7]} 21... g4 {[%clk 0:02:42.7]} 22. b4 {[%clk
0:02:31.1]} 22... h5 {[%clk 0:02:41.5]} 23. Qf2 {[%clk 0:02:25]} 23... Kg7
{[%clk 0:02:39.6]} 24. a4 {[%clk 0:02:25]} 24... Rh8 {[%clk 0:02:37]} 25. h4
{[%clk 0:02:20]} 25... Rf8 {[%clk 0:02:14.3]} 26. Kh2 {[%clk 0:02:13.3]} 26...
b6 {[%clk 0:02:11.7]} 27. Qc2 {[%clk 0:02:07.3]} 27... bxc5 {[%clk 0:02:09.9]}
28. bxc5 {[%clk 0:01:59.5]} 28... Bxg2 {[%clk 0:01:33.3]} 29. Qxg2 {[%clk
0:01:52.2]} 29... Rf3 {[%clk 0:01:33.3]} 30. Qe2 {[%clk 0:01:44.7]} 30... Qb7
{[%clk 0:01:29.8]} 31. Kg2 {[%clk 0:01:36]} 31... Qb3 {[%clk 0:01:25.3]} 32. Re1
{[%clk 0:01:34.5]} 32... Qxa4 {[%clk 0:01:26.3]} 33. Qb2 {[%clk 0:01:33]} 33...
Kg6 {[%clk 0:01:16.3]} 34. Qb8 {[%clk 0:01:07.9]} 34... Qc2+ {[%clk 0:01:10.5]}
35. Kh1 {[%clk 0:01:09.1]} 35... Rf2 {[%clk 0:00:24.8]} 36. Qg8+ {[%clk
0:01:08.4]} 36... Kh6 {[%clk 0:00:25]} 37. Qg5+ {[%clk 0:01:06.6]} 37... Kh7
{[%clk 0:00:26]} 38. Qxh5+ {[%clk 0:00:56.2]} 38... Kg7 {[%clk 0:00:25.3]} 39.
Qxg4+ {[%clk 0:00:57]} 39... Kf8 {[%clk 0:00:24.6]} 40. Qh3 {[%clk 0:00:55.6]}
40... a5 {[%clk 0:00:19.2]} 41. h5 {[%clk 0:00:55.5]} 41... Kg7 {[%clk
0:00:18.2]} 42. Rf1 {[%clk 0:00:49.2]} 42... Qe2 {[%clk 0:00:16.9]} 43. Rxf2
{[%clk 0:00:45.3]} 43... Qxf2 {[%clk 0:00:18.8]} 44. Qxe6 {[%clk 0:00:39.8]}
44... Qxg3 {[%clk 0:00:18.1]} 45. Qf6+ {[%clk 0:00:28.1]} 45... Kh7 {[%clk
0:00:19.2]} 46. Qxc6 {[%clk 0:00:21.5]} 46... Qh3+ {[%clk 0:00:19.7]} 47. Kg1
{[%clk 0:00:22.5]} 47... Qxe3+ {[%clk 0:00:21.6]} 48. Kg2 {[%clk 0:00:22.4]}
48... Qf3+ {[%clk 0:00:23]} 49. Kh2 {[%clk 0:00:23.8]} 49... Qf2+ {[%clk
0:00:23.9]} 50. Kh3 {[%clk 0:00:24.3]} 50... Qf3+ {[%clk 0:00:25.4]} 51. Kh4
{[%clk 0:00:24.2]} 51... Qf4+ {[%clk 0:00:26.7]} 52. Kh3 {[%clk 0:00:25.2]}
52... Qf3+ {[%clk 0:00:27.6]} 53. Kh4 {[%clk 0:00:23.4]} 53... Qf4+ {[%clk
0:00:27.7]} 54. Kh3 {[%clk 0:00:24.1]} 54... Qf5+ {[%clk 0:00:26.8]} 55. Kh4
{[%clk 0:00:24.8]} 55... Qf4+ {[%clk 0:00:19.2]} 56. Kh3 {[%clk 0:00:25.8]}
1/2-1/2

[Event "*** Titled Tuesday 3|2 Blitz"]
[Site "Chess.com"]
[Date "2015.06.02"]
[Round "6"]
[White "Carolina-moon"]
[Black "Theladies"]
[Result "0-1"]
[WhiteElo "1981"]
[BlackElo "1870"]
[TimeControl "180+2"]
[EndTime "12:13:44 PDT"]
[Termination "Theladies won by resignation"]

1. e4 {[%clk 0:03:01.9]} 1... c5 {[%clk 0:02:59.3]} 2. Nf3 {[%clk 0:03:01.4]}
2... e6 {[%clk 0:02:31.6]} 3. c3 {[%clk 0:03:01.6]} 3... d5 {[%clk 0:02:32.4]}
4. exd5 {[%clk 0:02:57.2]} 4... Qxd5 {[%clk 0:02:33.3]} 5. d4 {[%clk 0:02:57.6]}
5... cxd4 {[%clk 0:02:34.8]} 6. cxd4 {[%clk 0:02:56.9]} 6... Nc6 {[%clk
0:02:30.7]} 7. Nc3 {[%clk 0:02:56.5]} 7... Bb4 {[%clk 0:02:27.2]} 8. Be2 {[%clk
0:02:55.4]} 8... Nf6 {[%clk 0:02:26.2]} 9. O-O {[%clk 0:02:56.2]} 9... Bxc3
{[%clk 0:02:23]} 10. bxc3 {[%clk 0:02:58.1]} 10... O-O {[%clk 0:02:24.9]} 11. c4
{[%clk 0:02:41.1]} 11... Qd8 {[%clk 0:02:18.8]} 12. Bg5 {[%clk 0:02:41.4]} 12...
h6 {[%clk 0:02:03.2]} 13. Bh4 {[%clk 0:02:42.2]} 13... b6 {[%clk 0:01:56.8]} 14.
Qc2 {[%clk 0:02:19]} 14... Nxd4 {[%clk 0:01:48.2]} 15. Nxd4 {[%clk 0:02:12.2]}
15... Qxd4 {[%clk 0:01:50.1]} 16. Bg3 {[%clk 0:02:07.2]} 16... Bb7 {[%clk
0:01:48.8]} 17. Rfd1 {[%clk 0:02:07.1]} 17... Qe4 {[%clk 0:01:46.5]} 18. Qxe4
{[%clk 0:02:01]} 18... Nxe4 {[%clk 0:01:48.4]} 19. Be5 {[%clk 0:01:59.1]} 19...
Rfd8 {[%clk 0:01:41.6]} 20. Bf3 {[%clk 0:01:57.8]} 20... Rac8 {[%clk 0:01:38.1]}
21. a4 {[%clk 0:01:47.5]} 21... Rxd1+ {[%clk 0:01:29.9]} 22. Rxd1 {[%clk
0:01:47.7]} 22... Rxc4 {[%clk 0:01:29.4]} 23. Rd8+ {[%clk 0:01:43.2]} 23... Kh7
{[%clk 0:01:30.4]} 24. h3 {[%clk 0:01:35.4]} 24... Bd5 {[%clk 0:01:30]} 25. Rd7
{[%clk 0:01:34.2]} 25... Rxa4 {[%clk 0:01:25.2]} 26. Rxf7 {[%clk 0:01:33]} 26...
Kg8 {[%clk 0:01:21.8]} 27. Rxg7+ {[%clk 0:01:33.1]} 27... Kf8 {[%clk 0:01:23.4]}
28. Bh5 {[%clk 0:01:28.4]} 28... Ng5 {[%clk 0:01:09.1]} 29. Rc7 {[%clk
0:01:10.2]} 29... a6 {[%clk 0:00:39.2]} 30. Bg7+ {[%clk 0:01:07.4]} 30... Kg8
{[%clk 0:00:36.9]} 31. Bxh6 {[%clk 0:01:08.4]} 31... Rh4 {[%clk 0:00:28.4]} 32.
Rg7+ {[%clk 0:01:01.9]} 32... Kh8 {[%clk 0:00:27.9]} 33. Rxg5 {[%clk 0:01:02.9]}
33... a5 {[%clk 0:00:27.5]} 34. Bf7 {[%clk 0:00:53.4]} 34... Rxh6 {[%clk
0:00:26.6]} 35. Rg8+ {[%clk 0:00:51]} 35... Kh7 {[%clk 0:00:24.9]} 36. Rb8
{[%clk 0:00:52.9]} 36... Rf6 {[%clk 0:00:11.6]} 37. Bg8+ {[%clk 0:00:43.1]}
37... Kg7 {[%clk 0:00:10.9]} 38. Rxb6 {[%clk 0:00:38.8]} 38... Kxg8 {[%clk
0:00:11.9]} 39. Ra6 {[%clk 0:00:39.4]} 39... Rg6 {[%clk 0:00:07.3]} 40. g3
{[%clk 0:00:38.3]} 40... Rf6 {[%clk 0:00:02.6]} 41. Rxa5 {[%clk 0:00:37.8]}
41... Rf3 {[%clk 0:00:04.1]} 42. Rb5 {[%clk 0:00:33.9]} 42... Rb3 {[%clk
0:00:06]} 43. Rxb3 {[%clk 0:00:30.4]} 43... Bxb3 {[%clk 0:00:07.9]} 44. f3
{[%clk 0:00:31.7]} 44... Kf7 {[%clk 0:00:09.5]} 45. Kf2 {[%clk 0:00:33.2]} 45...
Kf6 {[%clk 0:00:10.8]} 46. Ke3 {[%clk 0:00:35.1]} 46... Kf5 {[%clk 0:00:12.3]}
47. h4 {[%clk 0:00:35.9]} 47... Bc2 {[%clk 0:00:11.8]} 48. Kd4 {[%clk 0:00:35]}
48... Bd1 {[%clk 0:00:11.7]} 49. Ke3 {[%clk 0:00:36.1]} 49... Bc2 {[%clk
0:00:12.7]} 50. g4+ {[%clk 0:00:35.4]} 50... Ke5 {[%clk 0:00:09.5]} 51. f4+
{[%clk 0:00:36.4]} 51... Kf6 {[%clk 0:00:10]} 52. Kd4 {[%clk 0:00:35.2]} 52...
Bd1 {[%clk 0:00:11.2]} 53. g5+ {[%clk 0:00:31.6]} 53... Kf5 {[%clk 0:00:13.1]}
54. h5 {[%clk 0:00:32.4]} 54... Bxh5 {[%clk 0:00:13.9]} 55. Kc5 {[%clk
0:00:28.7]} 55... Kxf4 {[%clk 0:00:14.6]} 56. Kd6 {[%clk 0:00:29.3]} 56... e5
{[%clk 0:00:16.2]} 57. g6 {[%clk 0:00:31.2]} 57... Bxg6 {[%clk 0:00:17.2]} 0-1

[Event "*** Titled Tuesday 3|2 Blitz"]
[Site "Chess.com"]
[Date "2015.06.02"]
[Round "6"]
[White "WGMCarlaHeredia"]
[Black "Schemato"]
[Result "0-1"]
[WhiteElo "2042"]
[BlackElo "2041"]
[TimeControl "180+2"]
[EndTime "12:14:14 PDT"]
[Termination "Schemato won by resignation"]

1. e4 {[%clk 0:02:54.3]} 1... e6 {[%clk 0:02:54.3]} 2. d4 {[%clk 0:02:52.9]}
2... d5 {[%clk 0:02:54.5]} 3. Nc3 {[%clk 0:02:53.6]} 3... Nf6 {[%clk 0:02:55]}
4. Bg5 {[%clk 0:02:53.8]} 4... Bb4 {[%clk 0:02:55.3]} 5. e5 {[%clk 0:02:44.8]}
5... h6 {[%clk 0:02:55.7]} 6. Bc1 {[%clk 0:02:35]} 6... Ne4 {[%clk 0:02:54.8]}
7. Qg4 {[%clk 0:02:34.7]} 7... g6 {[%clk 0:02:54.8]} 8. Ne2 {[%clk 0:02:16.8]}
8... c5 {[%clk 0:02:53.4]} 9. a3 {[%clk 0:02:16.8]} 9... cxd4 {[%clk 0:02:31.2]}
10. axb4 {[%clk 0:02:11.5]} 10... dxc3 {[%clk 0:02:31.9]} 11. bxc3 {[%clk
0:01:52.1]} 11... Nc6 {[%clk 0:02:19.9]} 12. f3 {[%clk 0:01:23.3]} 12... Ng5
{[%clk 0:02:07.7]} 13. h4 {[%clk 0:01:12.3]} 13... Nh7 {[%clk 0:01:57.9]} 14. f4
{[%clk 0:01:07.6]} 14... h5 {[%clk 0:01:50.3]} 15. Qf3 {[%clk 0:01:03]} 15...
Bd7 {[%clk 0:01:48.8]} 16. g4 {[%clk 0:01:00.2]} 16... hxg4 {[%clk 0:01:49.3]}
17. Qxg4 {[%clk 0:01:02.1]} 17... Ne7 {[%clk 0:01:45.6]} 18. h5 {[%clk
0:00:58.5]} 18... Qc7 {[%clk 0:01:26.8]} 19. Bd2 {[%clk 0:00:41.7]} 19... a6
{[%clk 0:01:26.2]} 20. Nd4 {[%clk 0:00:21.1]} 20... O-O-O {[%clk 0:01:21.2]} 21.
Bd3 {[%clk 0:00:18]} 21... Rdg8 {[%clk 0:01:08.4]} 22. h6 {[%clk 0:00:12.4]}
22... Nf5 {[%clk 0:01:04.5]} 23. Qe2 {[%clk 0:00:07]} 23... Qb6 {[%clk 0:00:57]}
24. Bxf5 {[%clk 0:00:06.9]} 24... gxf5 {[%clk 0:00:57]} 25. O-O-O {[%clk
0:00:07.6]} 25... Bb5 {[%clk 0:00:49.1]} 26. Qf3 {[%clk 0:00:06.1]} 26... Rg6
{[%clk 0:00:46]} 27. Rdg1 {[%clk 0:00:06.7]} 27... Rhg8 {[%clk 0:00:46.6]} 28.
Rxg6 {[%clk 0:00:07.1]} 28... Rxg6 {[%clk 0:00:47.6]} 29. Be3 {[%clk 0:00:08.5]}
29... Qc7 {[%clk 0:00:45.8]} 30. Kd2 {[%clk 0:00:09.1]} 30... Qc4 {[%clk
0:00:42.3]} 31. Qf2 {[%clk 0:00:09.3]} 31... Kd7 {[%clk 0:00:26.8]} 32. Qf3
{[%clk 0:00:10.2]} 32... Qc8 {[%clk 0:00:20.9]} 33. Nb3 {[%clk 0:00:10.7]} 33...
Qc4 {[%clk 0:00:17.4]} 34. Nc5+ {[%clk 0:00:11.6]} 34... Kc6 {[%clk 0:00:18.7]}
35. Qf2 {[%clk 0:00:12.5]} 35... Rg4 {[%clk 0:00:17.1]} 36. Nd3 {[%clk
0:00:13.4]} 36... Qe4 {[%clk 0:00:16.1]} 37. Ba7 {[%clk 0:00:13.4]} 37... Rg2
{[%clk 0:00:16.3]} 38. Rf1 {[%clk 0:00:05.5]} 38... Bxd3 {[%clk 0:00:14.2]} 39.
cxd3 {[%clk 0:00:04.6]} 39... Qxf4+ {[%clk 0:00:12.6]} 40. Kd1 {[%clk
0:00:02.8]} 40... Rxf2 {[%clk 0:00:12.9]} 41. Rxf2 {[%clk 0:00:02.4]} 41... Qxh6
{[%clk 0:00:13.9]} 42. Be3 {[%clk 0:00:02.6]} 42... Qh5+ {[%clk 0:00:13.7]} 43.
Kd2 {[%clk 0:00:03.4]} 43... Ng5 {[%clk 0:00:14.4]} 44. Kc2 {[%clk 0:00:03.5]}
44... Nf3 {[%clk 0:00:14.9]} 45. Rg2 {[%clk 0:00:04.2]} 45... Nxe5 {[%clk
0:00:14.9]} 46. Bd4 {[%clk 0:00:04.9]} 46... f6 {[%clk 0:00:14.2]} 47. Kb3
{[%clk 0:00:05.4]} 47... Qf3 {[%clk 0:00:13.7]} 48. Rg7 {[%clk 0:00:05.6]} 48...
Qxd3 {[%clk 0:00:13.4]} 49. Bxe5 {[%clk 0:00:05]} 49... fxe5 {[%clk 0:00:14.1]}
50. Re7 {[%clk 0:00:06.2]} 50... Qc4+ {[%clk 0:00:12.8]} 51. Kb2 {[%clk
0:00:05.1]} 51... d4 {[%clk 0:00:14.7]} 52. Re8 {[%clk 0:00:05.6]} 52... dxc3+
{[%clk 0:00:14.8]} 53. Kc2 {[%clk 0:00:06.6]} 53... Kd7 {[%clk 0:00:15.3]} 54.
Rf8 {[%clk 0:00:06.5]} 54... Qd4 {[%clk 0:00:16.1]} 55. b5 {[%clk 0:00:06.6]}
55... axb5 {[%clk 0:00:15.6]} 56. Rf7+ {[%clk 0:00:07.2]} 56... Kd6 {[%clk
0:00:16.4]} 57. Rxb7 {[%clk 0:00:08]} 57... Qd2+ {[%clk 0:00:17.3]} 0-1